bitfinex/quotes_SOLUSD_20241123
["timestamp","ask_amount","ask_price","bid_price","bid_amount"]
[1732347942562,5.23459036,258.03,257.94,5.23459036]
[1732347942763,5.23459036,258.03,257.89,9.74183109]
[1732347942764,23.776884,257.94,257.83,3.45788403]
[1732347943074,5.23459036,257.86,257.76,5.23459036]
[1732347944759,8.17759065,257.84,257.74,8.17759065]
[1732347945258,8.17759065,257.82,257.72,8.17759065]
[1732347945859,8.17759065,257.84,257.74,8.17759065]
[1732347946160,23.776884,257.83,257.74,8.17759065]
[1732347946767,8.17759065,257.84,257.74,8.17759065]
[1732347947755,22.3219,257.89,257.76,8.17759065]
[1732347947756,8.17759065,257.86,257.76,8.17759065]
[1732347948063,2.86348376,257.85,257.76,8.17759065]
[1732347948263,2.86401852,257.84,257.76,8.17759065]
[1732347948469,8.17759065,257.86,257.76,8.17759065]
[1732347948675,2.86409723,257.85,257.76,8.17759065]
[1732347948984,8.17759065,257.86,257.76,8.17759065]
[1732347949284,22.3219,257.89,257.72,23.776884]
[1732347949285,8.17759065,257.8,257.72,8.17759065]
[1732347949975,8.17759065,257.8,257.71,15.5803]
[1732347950384,8.17759065,257.8,257.72,8.17759065]
[1732347950759,8.17759065,257.8,257.71,15.5803]
[1732347952479,8.17759065,257.78,257.68,8.17759065]
[1732347952778,39.2771861,257.89,257.59,2.5]
[1732347952779,8.17759065,257.74,257.59,2.5]
[1732347952970,8.17759065,257.74,257.64,8.17759065]
[1732347953170,8.17759065,257.76,257.68,8.17759065]
[1732347953484,8.17759065,257.78,257.68,8.17759065]
[1732347953682,2.8654912,257.77,257.68,8.17759065]
[1732347953982,8.17759065,257.78,257.68,8.17759065]
[1732347954275,2.86580679,257.77,257.69,8.17759065]
[1732347954461,8.17759065,257.78,257.61,23.776884]
[1732347954671,2.86586822,257.77,257.68,8.17759065]
[1732347954864,8.17759065,257.78,257.68,8.17759065]
[1732347955065,2.86572888,257.77,257.68,8.17759065]
[1732347955264,8.17759065,257.78,257.68,8.17759065]
[1732347955466,2.86605822,257.77,257.68,8.17759065]
[1732347955670,8.17759065,257.78,257.68,8.17759065]
[1732347955871,2.86571952,257.77,257.68,8.17759065]
[1732347956076,8.17759065,257.78,257.68,8.17759065]
[1732347956384,2.86574086,257.77,257.68,8.17759065]
[1732347956585,8.17759065,257.78,257.68,8.17759065]
[1732347956886,2.86564675,257.77,257.7,8.17759065]
[1732347957194,8.17759065,257.78,257.7,8.17759065]
[1732347957380,2.86536163,257.77,257.7,8.17759065]
[1732347957582,8.17759065,257.78,257.7,8.17759065]
[1732347957762,2.86535215,257.77,257.7,8.17759065]
[1732347957959,8.17759065,257.78,257.7,8.17759065]
[1732347959389,8.17759065,257.78,257.63,23.776884]
[1732347959559,2.86487097,257.77,257.69,8.17759065]
[1732347959765,8.17759065,257.78,257.69,8.17759065]
[1732347959981,8.17759065,257.76,257.63,23.776884]
[1732347960184,8.17759065,257.76,257.68,8.17759065]
[1732347962664,8.17759065,257.78,257.68,8.17759065]
[1732347962959,8.17759065,257.82,257.74,8.17759065]
[1732347963193,2.86417639,257.81,257.74,8.17759065]
[1732347963379,2.86417639,257.8,257.74,8.17759065]
[1732347963580,8.17759065,257.82,257.74,8.17759065]
[1732347963888,2.86394545,257.81,257.74,8.17759065]
[1732347964068,8.17759065,257.82,257.74,8.17759065]
[1732347964465,2.86399425,257.81,257.74,8.17759065]
[1732347964792,24.00649065,257.84,257.74,8.17759065]
[1732347965079,2.86391406,257.83,257.74,8.17759065]
[1732347965285,2.86391406,257.82,257.78,8.17759065]
[1732347965583,8.17759065,257.88,257.78,8.17759065]
[1732347965788,2.86427288,257.87,257.78,8.17759065]
[1732347965969,2.86427288,257.87,257.72,0.5818381]
[1732347965970,2.86427288,257.86,257.8,8.17759065]
[1732347966162,8.17759065,257.88,257.8,8.17759065]
[1732347966364,2.8646599,257.87,257.8,8.17759065]
[1732347966577,8.17759065,257.88,257.8,8.17759065]
[1732347966790,2.86479928,257.87,257.8,5.23144304]
[1732347966967,5.23144304,257.89,257.8,5.23144304]
[1732347967284,2.86476252,257.88,257.8,5.23144304]
[1732347967491,2.86476252,257.87,257.8,5.23144304]
[1732347967672,2.86476252,257.88,257.8,5.23144304]
[1732347967867,5.23144304,257.83,257.74,5.23144304]
[1732347968374,5.23144304,257.83,257.71,9.67062826]
[1732347968685,8.17859843,257.82,257.73,8.17859843]
[1732347969686,8.17859843,257.84,257.75,8.17859843]
[1732347969988,8.17859843,257.86,257.77,8.17859843]
[1732347970181,8.17859843,257.88,257.79,8.17859843]
[1732347970486,2.86460999,257.87,257.79,8.17859843]
[1732347970666,8.17859843,257.88,257.79,8.17859843]
[1732347970869,2.86467883,257.87,257.81,8.17859843]
[1732347971090,8.17859843,257.9,257.81,8.17859843]
[1732347971391,2.8646367,257.89,257.81,8.17859843]
[1732347971590,8.17859843,257.9,257.81,8.17859843]
[1732347971790,8.17859843,257.92,257.83,8.17859843]
[1732347972089,2.86485757,257.91,257.83,8.17859843]
[1732347972278,8.17859843,257.92,257.83,8.17859843]
[1732347972477,2.8647319,257.91,257.83,8.17859843]
[1732347972681,8.17859843,257.92,257.83,8.17859843]
[1732347972876,2.86476176,257.91,257.83,8.17859843]
[1732347973071,2.86465088,257.9,257.83,8.17859843]
[1732347973271,8.17859843,257.92,257.84,23.776884]
[1732347973497,2.86442029,257.91,257.84,23.776884]
[1732347973694,2.86442029,257.9,257.84,23.776884]
[1732347973990,8.17859843,257.92,257.84,23.776884]
[1732347974192,2.86449776,257.91,257.84,23.776884]
[1732347974381,2.86449776,257.9,257.84,23.776884]
[1732347974583,8.17859843,257.92,257.84,23.776884]
[1732347974777,2.86447348,257.91,257.84,23.776884]
[1732347975091,2.86447348,257.9,257.84,23.776884]
[1732347975288,8.17859843,257.92,257.84,23.776884]
[1732347975604,2.86417165,257.91,257.84,23.776884]
[1732347975773,8.17859843,257.88,257.79,8.17859843]
[1732347976684,2.86351167,257.87,257.79,8.17859843]
[1732347976882,8.17859843,257.88,257.79,8.17859843]
[1732347977082,2.8635318,257.87,257.79,8.17859843]
[1732347977288,8.17859843,257.88,257.79,8.17859843]
[1732347977486,2.86390493,257.87,257.79,8.17859843]
[1732347977797,15.8926,257.94,257.82,23.776884]
[1732347978090,8.17859843,257.92,257.84,23.776884]
[1732347978298,2.86400734,257.91,257.84,23.776884]
[1732347978593,11.04273476,257.9,257.82,23.776884]
[1732347978987,2.86413633,257.89,257.82,23.776884]
[1732347979185,8.17859843,257.9,257.82,23.776884]
[1732347979387,2.86404133,257.89,257.82,23.776884]
[1732347979598,8.17859843,257.9,257.82,23.776884]
[1732347979896,2.86406814,257.89,257.82,23.776884]
[1732347980096,8.17859843,257.9,257.82,23.776884]
[1732347980287,2.86401609,257.89,257.82,23.776884]
[1732347980473,8.17859843,257.9,257.82,23.776884]
[1732347980669,2.8640752,257.89,257.82,23.776884]
[1732347980898,8.17859843,257.9,257.82,23.776884]
[1732347981098,2.86408088,257.89,257.82,23.776884]
[1732347981278,8.17859843,257.9,257.82,23.776884]
[1732347981480,21.90872381,257.94,257.83,8.17859843]
[1732347981694,8.17859843,257.92,257.83,8.17859843]
[1732347981901,2.86425202,257.91,257.83,8.17859843]
[1732347982198,2.86425202,257.9,257.83,8.17859843]
[1732347982376,8.17859843,257.92,257.83,8.17859843]
[1732347982688,2.86433538,257.91,257.83,8.17859843]
[1732347983002,2.86433538,257.9,257.83,8.17859843]
[1732347983192,8.17859843,257.92,257.83,8.17859843]
[1732347983392,2.86468376,257.91,257.83,8.17859843]
[1732347983696,2.86468376,257.9,257.83,8.17859843]
[1732347983909,2.86468376,257.89,257.79,8.17859843]
[1732347984078,8.17859843,257.9,257.79,8.17859843]
[1732347984397,2.86484985,257.89,257.79,8.17859843]
[1732347984696,8.17859843,257.84,257.75,8.17859843]
[1732347985411,8.17859843,257.82,257.73,8.17859843]
[1732347985710,8.17859843,257.8,257.71,8.17859843]
[1732347986298,8.17859843,257.82,257.73,8.17859843]
[1732347986499,2.86554504,257.81,257.75,8.17859843]
[1732347986699,6.01612381,257.99,257.79,16.35719686]
[1732347986999,22.15412381,258.01,257.96,8.17859843]
[1732347987183,6.01612381,258.0,257.94,8.17859843]
[1732347987386,22.15412381,258.01,257.94,8.17859843]
[1732347987687,16.138,258.01,257.94,8.17859843]
[1732347988000,22.15412381,258.01,257.92,8.17859843]
[1732347988201,6.01612381,258.0,257.92,8.17859843]
[1732347988376,6.01612381,258.0,257.8,25.03506641]
[1732347988377,8.17859843,257.98,257.9,8.17859843]
[1732347988697,14.19472224,257.98,257.88,8.17859843]
[1732347988901,6.01612381,257.97,257.88,8.17859843]
[1732347989708,8.17859843,257.94,257.84,8.17859843]
[1732347989884,8.17859843,257.92,257.83,5.53843413]
[1732347990085,22.6945,257.91,257.82,8.17859843]
[1732347990799,8.17859843,257.9,257.8,8.17859843]
[1732347991004,8.17859843,257.88,257.78,8.17859843]
[1732347991900,14.19472224,257.88,257.78,8.17859843]
[1732347992979,14.19472224,257.88,257.66,23.776884]
[1732347993179,14.19472224,257.88,257.78,8.17859843]
[1732347993602,23.776884,257.87,257.78,8.17859843]
[1732347993789,14.19472224,257.86,257.78,8.17859843]
[1732347994598,6.01612381,257.85,257.78,8.17859843]
[1732347995195,6.01612381,257.86,257.78,8.17859843]
[1732347996601,6.01612381,257.85,257.78,8.17859843]
[1732347997611,6.01612381,257.85,257.76,8.17859843]
[1732347997909,6.01612381,257.84,257.76,8.17859843]
[1732347998114,8.17859843,257.78,257.67,5.33002197]
[1732347998287,8.17859843,257.78,257.69,8.17859843]
[1732347999001,22.3371,257.79,257.71,8.17859843]
[1732347999210,28.35322381,257.79,257.71,8.17859843]
[1732347999516,22.3371,257.79,257.71,8.17859843]
[1732348001207,22.3371,257.79,257.59,21.18800875]
[1732348001208,22.3371,257.79,257.69,8.17859843]
[1732348001508,8.17859843,257.78,257.69,8.17859843]
[1732348004112,22.3371,257.79,257.71,8.17859843]
[1732348006403,8.17859843,257.78,257.69,8.17859843]
[1732348007099,8.17859843,257.76,257.67,8.17859843]
[1732348007605,23.776884,257.75,257.67,8.17859843]
[1732348009202,23.776884,257.75,257.65,8.17859843]
[1732348009408,23.776884,257.73,257.65,8.17859843]
[1732348009917,8.17859843,257.72,257.63,8.17859843]
[1732348010392,23.776884,257.71,257.63,8.17859843]
[1732348012097,23.776884,257.69,257.61,8.17859843]
[1732348013316,8.17859843,257.68,257.59,8.17859843]
[1732348013492,24.07269843,257.68,257.59,8.17859843]
[1732348013694,23.776884,257.67,257.59,8.17859843]
[1732348015919,8.17859843,257.66,257.59,8.17859843]
[1732348016099,23.776884,257.65,257.59,8.17859843]
[1732348017222,23.776884,257.67,257.59,8.17859843]
[1732348017697,24.07269843,257.68,257.61,8.17859843]
[1732348018419,24.07269843,257.68,257.59,8.17859843]
[1732348018594,23.776884,257.67,257.59,8.17859843]
[1732348019110,8.17859843,257.66,257.59,8.17859843]
[1732348019802,23.776884,257.67,257.59,8.17859843]
[1732348020727,23.776884,257.65,257.57,8.17859843]
[1732348021728,8.17859843,257.64,257.56,8.17859843]
[1732348022026,23.776884,257.67,257.52,5.28812498]
[1732348022027,8.17859843,257.62,257.52,5.28812498]
[1732348022210,23.776884,257.59,257.51,8.17859843]
[1732348022717,23.776884,257.59,257.51,5.24428036]
[1732348024300,5.24428036,257.58,257.51,5.24428036]
[1732348024501,23.776884,257.57,257.51,5.24428036]
[1732348024802,23.776884,257.58,257.51,8.19442334]
[1732348026318,8.19442334,257.57,257.49,8.19442334]
[1732348026505,23.776884,257.56,257.49,8.19442334]
[1732348028909,15.3,257.58,257.51,8.19442334]
[1732348029104,6.0203,257.59,257.53,8.19442334]
[1732348030137,15.3,257.64,257.55,8.19442334]
[1732348030138,8.19442334,257.63,257.55,8.19442334]
[1732348030832,15.3,257.64,257.57,8.19442334]
[1732348031339,15.3,257.64,257.59,8.19442334]
[1732348031639,8.19442334,257.69,257.59,8.19442334]
[1732348032726,8.19442334,257.67,257.59,8.19442334]
[1732348033035,8.19442334,257.67,257.53,13.48254832]
[1732348033036,23.776884,257.64,257.55,8.19442334]
[1732348033272,23.776884,257.64,257.53,5.28812498]
[1732348033542,15.3,257.7,257.55,8.19442334]
[1732348033543,23.776884,257.62,257.55,8.19442334]
[1732348034422,23.776884,257.62,257.53,5.28812498]
[1732348034423,23.776884,257.6,257.53,5.28812498]
[1732348034719,23.776884,257.58,257.51,8.19442334]
[1732348036743,23.776884,257.6,257.51,8.19442334]
[1732348037131,23.776884,257.6,257.53,8.19442334]
[1732348040225,23.776884,257.58,257.47,5.28812498]
[1732348040427,23.776884,257.56,257.43,3.50357367]
[1732348040626,23.776884,257.56,257.47,8.19442334]
[1732348041319,21.5425,257.59,257.47,8.19442334]
[1732348041320,23.776884,257.54,257.47,8.19442334]
[1732348042152,8.19442334,257.51,257.41,5.28812498]
[1732348042327,23.776884,257.5,257.42,8.19442334]
[1732348046753,23.776884,257.5,257.43,5.24768978]
[1732348049255,23.776884,257.5,257.35,8.81262216]
[1732348049461,23.776884,257.5,257.42,5.24768978]
[1732348050834,23.776884,257.5,257.36,5.28812498]
[1732348050835,5.24768978,257.49,257.36,5.28812498]
[1732348051039,23.776884,257.48,257.4,5.24768978]
[1732348051457,23.776884,257.48,257.36,5.28812498]
[1732348051458,23.776884,257.46,257.36,5.28812498]
[1732348051758,23.776884,257.46,257.39,5.24768978]
[1732348053153,29.02457378,257.47,257.39,5.24768978]
[1732348053939,29.02457378,257.47,257.36,5.28812498]
[1732348054259,29.02457378,257.47,257.38,5.24768978]
[1732348054643,5.24768978,257.45,257.38,5.24768978]
[1732348054972,23.776884,257.44,257.38,5.24768978]
[1732348055646,5.24768978,257.42,257.3,10.97333609]
[1732348055851,23.776884,257.41,257.34,5.24768978]
[1732348056658,23.776884,257.38,257.32,5.24768978]
[1732348057361,23.776884,257.38,257.31,5.24768978]
[1732348057956,23.776884,257.39,257.32,5.24768978]
[1732348059161,23.776884,257.39,257.34,5.24768978]
[1732348059464,23.776884,257.44,257.36,5.24768978]
[1732348059667,5.24768978,257.43,257.34,4.99923609]
[1732348059840,23.776884,257.4,257.34,4.99923609]
[1732348060043,23.776884,257.4,257.3,5.9741]
[1732348060244,23.776884,257.4,257.32,5.24768978]
[1732348061043,20.0,257.47,257.36,5.24768978]
[1732348061242,23.776884,257.44,257.36,5.24768978]
[1732348061656,23.776884,257.44,257.38,5.24768978]
[1732348062067,5.24768978,257.45,257.38,5.24768978]
[1732348062245,23.776884,257.44,257.38,5.24768978]
[1732348065455,23.776884,257.44,257.36,5.24768978]
[1732348065651,5.24768978,257.43,257.36,5.24768978]
[1732348066551,23.776884,257.45,257.38,5.24768978]
[1732348067672,5.24768978,257.44,257.36,5.24768978]
[1732348067873,23.776884,257.43,257.36,5.24768978]
[1732348068856,16.3017,257.48,257.4,5.24768978]
[1732348069057,5.24768978,257.47,257.38,5.24768978]
[1732348070461,23.776884,257.46,257.38,5.24768978]
[1732348070967,5.24768978,257.45,257.36,5.24768978]
[1732348071168,23.776884,257.44,257.36,5.24768978]
[1732348074150,5.24768978,257.43,257.32,9.75943543]
[1732348074355,23.776884,257.4,257.32,9.75943543]
[1732348074568,23.776884,257.4,257.32,15.00712521]
[1732348078065,23.776884,257.4,257.32,10.24692587]
[1732348078780,23.776884,257.38,257.3,5.9741]
[1732348079079,23.776884,257.34,257.3,5.9741]
[1732348080359,29.02457378,257.31,257.3,5.9741]
[1732348081973,23.776884,257.31,257.3,5.9741]
[1732348083282,29.02457378,257.31,257.3,5.9741]
[1732348083584,51.52457378,257.31,257.3,5.9741]
[1732348083764,29.02457378,257.31,257.3,5.9741]
[1732348083959,49.02457378,257.31,257.3,5.9741]
[1732348085376,29.02457378,257.31,257.3,5.9741]
[1732348086587,5.24768978,257.31,257.3,5.9741]
[1732348087658,29.02457378,257.31,257.3,5.9741]
[1732348090573,23.776884,257.31,257.3,5.9741]
[1732348090762,29.02457378,257.31,257.3,5.9741]
[1732348091975,23.776884,257.31,257.3,5.9741]
[1732348092173,29.02457378,257.31,257.3,5.9741]
[1732348093468,49.02457378,257.31,257.3,5.9741]
[1732348094693,29.02457378,257.31,257.3,5.9741]
[1732348095069,49.02457378,257.31,257.3,5.9741]
[1732348096187,43.776884,257.31,257.3,5.9741]
[1732348096391,25.24768978,257.31,257.3,5.9741]
[1732348097668,49.02457378,257.31,257.3,5.9741]
[1732348097875,43.776884,257.31,257.3,5.9741]
[1732348098185,49.02457378,257.31,257.3,5.9741]
[1732348098596,51.52457378,257.31,257.3,5.9741]
[1732348100293,2.5,257.29,257.12,16.0423]
[1732348100496,5.24768978,257.24,257.16,5.24768978]
[1732348100881,22.5,257.3,257.16,5.24768978]
[1732348101076,5.24768978,257.25,257.16,5.24768978]
[1732348102085,2.5,257.3,257.16,5.24768978]
[1732348102393,23.776884,257.25,257.16,5.24768978]
[1732348102772,23.776884,257.25,257.12,20.60820276]
[1732348102773,23.776884,257.23,257.12,20.60820276]
[1732348102975,23.776884,257.23,257.16,5.24768978]
[1732348106303,23.776884,257.23,257.06,15.4187]
[1732348106304,23.776884,257.17,257.06,15.4187]
[1732348106477,23.776884,257.17,257.09,5.24768978]
[1732348107182,23.776884,257.17,257.06,15.4187]
[1732348107494,5.24768978,257.16,257.08,5.24768978]
[1732348107678,23.776884,257.15,257.08,5.24768978]
[1732348109074,37.06305912,257.27,257.1,5.24768978]
[1732348109075,23.776884,257.17,257.1,5.24768978]
[1732348109281,23.776884,257.17,257.06,15.4187]
[1732348109598,23.776884,257.17,257.08,5.24768978]
[1732348109794,5.24768978,257.16,257.08,5.24768978]
[1732348109995,23.776884,257.15,257.08,5.24768978]
[1732348110374,5.24768978,257.14,257.0,25.4187]
[1732348110575,23.776884,257.11,257.03,5.24768978]
[1732348111195,5.24768978,257.1,257.0,10.0]
[1732348111384,56.3866329,257.01,257.0,10.0]
[1732348111582,76.3866329,257.01,257.0,10.0]
[1732348111774,16.0723,256.98,256.66,2.5]
[1732348111974,23.776884,256.96,256.81,5.24768978]
[1732348112179,16.0723,256.98,256.7,356.41151359]
[1732348112398,16.0723,256.98,256.82,5.24768978]
[1732348112595,5.24768978,256.93,256.82,5.24768978]
[1732348113173,5.24768978,256.93,256.79,21.8753]
[1732348113391,5.24768978,256.93,256.83,5.24768978]
[1732348113597,27.36205912,257.01,256.79,21.8753]
[1732348113784,23.776884,257.0,256.86,5.24768978]
[1732348113978,5.24768978,256.95,256.86,5.24768978]
[1732348114298,5.24768978,256.93,256.79,21.8753]
[1732348114598,5.24768978,256.92,256.79,21.8753]
[1732348114778,23.776884,256.91,256.81,5.24768978]
[1732348115179,5.24768978,256.9,256.81,5.24768978]
[1732348116179,5.24768978,256.92,256.79,21.8753]
[1732348116502,5.24768978,256.92,256.84,5.24768978]
[1732348116691,5.24768978,256.94,256.84,5.24768978]
[1732348116889,23.776884,256.93,256.84,5.24768978]
[1732348118203,20.0,257.0,256.86,5.24768978]
[1732348118378,5.24768978,256.93,256.86,5.24768978]
[1732348118583,5.24768978,256.93,256.84,5.24768978]
[1732348119003,27.36205912,257.01,256.86,5.24768978]
[1732348119180,5.24768978,256.94,256.86,5.24768978]
[1732348119501,23.776884,256.93,256.86,5.24768978]
[1732348120198,23.776884,256.93,256.79,21.8753]
[1732348120498,23.776884,256.93,256.84,5.24768978]
[1732348120897,23.776884,256.93,256.84,317.24768978]
[1732348122187,23.776884,256.93,256.84,312.0]
[1732348122386,23.776884,256.93,256.79,21.8753]
[1732348122387,5.24768978,256.9,256.79,21.8753]
[1732348122696,23.776884,256.86,256.79,27.12298978]
[1732348123906,23.776884,256.86,256.79,5.24768978]
[1732348125300,5.24768978,256.9,256.81,5.24768978]
[1732348125815,5.24768978,256.9,256.83,5.24768978]
[1732348126115,15.514538,256.98,256.76,312.0]
[1732348126116,5.24768978,256.88,256.81,5.24768978]
[1732348126584,23.776884,256.87,256.81,5.24768978]
[1732348126909,23.776884,256.87,256.74,20.0]
[1732348127113,29.02457378,256.87,256.79,5.24768978]
[1732348127606,29.02457378,256.87,256.74,20.0]
[1732348127905,29.02457378,256.87,256.78,5.24768978]
[1732348128090,23.776884,256.84,256.74,20.0]
[1732348128291,23.776884,256.84,256.73,22.7259]
[1732348128505,23.776884,256.84,256.75,5.24768978]
[1732348128809,23.776884,256.82,256.75,5.24768978]
[1732348129989,23.776884,256.82,256.7,350.0]
[1732348129990,23.776884,256.82,256.73,5.24768978]
[1732348130190,5.24768978,256.81,256.7,350.0]
[1732348130390,23.776884,256.8,256.72,5.24768978]
[1732348131301,23.776884,256.77,256.71,5.24768978]
[1732348131498,23.776884,256.77,256.7,350.0]
[1732348131689,23.776884,256.79,256.72,5.24768978]
[1732348133999,6.0132,256.84,256.7,355.24768978]
[1732348134000,23.776884,256.77,256.7,355.24768978]
[1732348135699,23.776884,256.77,256.7,350.0]
[1732348135915,23.776884,256.77,256.7,355.24768978]
[1732348136409,5.24768978,256.74,256.7,350.0]
[1732348136627,23.776884,256.73,256.7,350.0]
[1732348136925,23.776884,256.73,256.7,355.24768978]
[1732348137221,23.776884,256.73,256.7,350.0]
[1732348138802,6.0132,256.84,256.71,5.24768978]
[1732348139127,6.6217,256.9,256.78,5.24768978]
[1732348139423,5.24768978,256.86,256.78,5.24768978]
[1732348140011,6.6217,256.9,256.73,22.569]
[1732348140012,5.24768978,256.84,256.73,22.569]
[1732348140202,5.24768978,256.82,256.74,5.24768978]
[1732348140525,23.776884,256.81,256.74,5.24768978]
[1732348140728,23.776884,256.81,256.7,350.0]
[1732348140906,23.776884,256.81,256.74,5.24768978]
[1732348141827,23.776884,256.82,256.74,317.24768978]
[1732348142007,23.776884,256.82,256.75,5.24768978]
[1732348143430,23.776884,256.8,256.7,350.0]
[1732348143624,23.776884,256.8,256.74,5.24768978]
[1732348143929,23.776884,256.82,256.74,5.24768978]
[1732348145612,6.6217,256.9,256.78,5.24768978]
[1732348145936,5.24768978,256.87,256.8,5.24768978]
[1732348146232,5.24768978,256.89,256.8,5.24768978]
[1732348146532,5.24768978,256.89,256.8,317.24768978]
[1732348147031,6.3068,256.96,256.8,5.24768978]
[1732348147207,5.24768978,256.88,256.8,5.24768978]
[1732348147403,5.24768978,256.88,256.73,2.5]
[1732348147404,5.24768978,256.86,256.73,20.0]
[1732348147704,8.8068,256.96,256.72,15.3049]
[1732348147705,5.24768978,256.84,256.72,15.3049]
[1732348147909,5.24768978,256.82,256.74,5.24768978]
[1732348148124,23.776884,256.9,256.76,5.24768978]
[1732348148336,5.24768978,256.84,256.76,5.24768978]
[1732348148837,23.776884,256.83,256.75,5.24768978]
[1732348150006,23.776884,256.83,256.7,350.0]
[1732348150210,23.776884,256.81,256.7,350.0]
[1732348150531,23.776884,256.79,256.72,5.24768978]
[1732348151034,5.24768978,256.8,256.72,5.24768978]
[1732348151213,23.776884,256.79,256.7,355.24768978]
[1732348152320,23.776884,256.79,256.71,5.24768978]
[1732348152832,23.776884,256.79,256.7,350.0]
[1732348153015,23.776884,256.79,256.71,5.24768978]
[1732348154215,23.776884,256.77,256.71,5.24768978]
[1732348155231,23.776884,256.77,256.7,350.0]
[1732348157111,23.776884,256.79,256.7,350.0]
[1732348157319,5.24768978,256.78,256.7,350.0]
[1732348157518,16.1781,256.8,256.71,5.24768978]
[1732348157734,5.24768978,256.79,256.71,5.24768978]
[1732348157916,5.24768978,256.79,256.7,350.0]
[1732348158438,5.24768978,256.75,256.7,350.0]
[1732348159119,23.776884,256.74,256.7,350.0]
[1732348160117,23.776884,256.76,256.7,350.0]
[1732348160317,5.24768978,256.75,256.7,350.0]
[1732348160524,23.776884,256.76,256.7,350.0]
[1732348160728,23.776884,256.74,256.7,350.0]
[1732348162544,5.24768978,256.73,256.7,350.0]
[1732348163040,23.776884,256.72,256.7,350.0]
[1732348165333,5.24768978,256.74,256.7,350.0]
[1732348166554,23.776884,256.73,256.7,350.0]
[1732348168151,29.02457378,256.73,256.7,350.0]
[1732348169054,23.776884,256.73,256.7,350.0]
[1732348169339,29.02457378,256.73,256.7,350.0]
[1732348169957,29.02457378,256.71,256.7,350.0]
[1732348170242,8.11305939,256.71,256.7,350.0]
[1732348170622,31.88994339,256.71,256.7,350.0]
[1732348173426,26.64259175,256.71,256.7,350.0]
[1732348173636,8.11339753,256.71,256.7,350.0]
[1732348173841,2.86570775,256.71,256.7,350.0]
[1732348174430,5.24768978,256.73,256.7,350.0]
[1732348174627,2.86572916,256.72,256.7,350.0]
[1732348175549,5.24768978,256.78,256.7,350.0]
[1732348175726,2.86636992,256.77,256.7,355.24768978]
[1732348175933,2.86636992,256.76,256.7,355.24768978]
[1732348176154,5.24768978,256.78,256.7,355.24768978]
[1732348176451,2.86639964,256.77,256.7,355.24768978]
[1732348176644,6.01612381,256.86,256.7,355.24768978]
[1732348176833,5.24768978,256.8,256.72,5.24768978]
[1732348177032,2.86657788,256.79,256.72,5.24768978]
[1732348179050,2.86657788,256.79,256.7,355.24768978]
[1732348179348,2.86657788,256.79,256.76,5.24768978]
[1732348179548,5.24768978,256.84,256.76,5.24768978]
[1732348179742,2.86705954,256.83,256.76,5.24768978]
[1732348179949,2.86705954,256.82,256.76,5.24768978]
[1732348180152,5.24768978,256.85,256.74,20.0]
[1732348180361,2.86698817,256.84,256.75,5.24768978]
[1732348180652,5.24768978,256.79,256.73,6.6296]
[1732348181848,5.24768978,256.79,256.71,19.77204301]
[1732348182157,21.5966,256.89,256.71,19.77204301]
[1732348182158,6.01612381,256.87,256.74,5.24768978]
[1732348182450,2.86637332,256.86,256.79,5.24768978]
[1732348182652,2.86637332,256.85,256.8,20.0]
[1732348182844,2.86637332,256.84,256.8,20.0]
[1732348183158,5.24768978,256.87,256.8,20.0]
[1732348183458,2.86632002,256.86,256.8,20.0]
[1732348183657,5.24768978,256.87,256.8,20.0]
[1732348183842,2.86605862,256.86,256.8,20.0]
[1732348184033,5.24768978,256.88,256.82,20.0]
[1732348184236,2.86625271,256.87,256.82,20.0]
[1732348184436,2.86625271,256.86,256.82,20.0]
[1732348184633,5.24768978,256.86,256.8,20.0]
[1732348185053,2.86552508,256.85,256.8,20.0]
[1732348185260,5.24768978,256.86,256.8,20.0]
[1732348185456,2.86507476,256.85,256.8,20.0]
[1732348185636,23.776884,256.91,256.8,20.0]
[1732348185950,5.24768978,256.84,256.77,20.0]
[1732348186147,23.776884,256.91,256.77,20.0]
[1732348186360,5.24768978,256.86,256.77,20.0]
[1732348186541,5.24768978,256.84,256.77,20.0]
[1732348187054,2.86430522,256.83,256.77,20.0]
[1732348187234,5.24768978,256.84,256.77,20.0]
[1732348187434,2.86426395,256.83,256.77,20.0]
[1732348187648,5.24768978,256.84,256.77,20.0]
[1732348187844,2.86411767,256.83,256.77,20.0]
[1732348188159,5.24768978,256.84,256.77,20.0]
[1732348189143,5.24768978,256.82,256.75,4.68974301]
[1732348189744,5.24768978,256.84,256.75,4.68974301]
[1732348189959,2.86369102,256.83,256.75,4.68974301]